[Event "Titled Tuesday Blitz April 25 Late 2023"]
[White "Lazavik, Denis"]
[Black "Piesik, Piotr"]
[WhiteFideId "13515110"]
[BlackFideId "1136194"]
[WhiteElo "2560"]
[BlackElo "2299"]
[Result "1-0"]
[Round "02"]
[TimeControl "180+2"]
[Date "2023.04.25"]
[WhiteClock "0:01:38"]
[BlackClock "0:02:19"]

1. d4 {[%clk 0:03:00]}  c5 {[%clk 0:02:59]} 2. d5 {[%clk 0:03:00]}  e5 {[%clk 0:02:58]} 3. e4 {[%clk 0:02:59]}  d6 {[%clk 0:02:59]} 4. Bb5+ {[%clk 0:02:57]}  Nd7 {[%clk 0:02:59]} 5. a4 {[%clk 0:02:57]}  Be7 {[%clk 0:02:58]} 6. Nf3 {[%clk 0:02:54]}  Nf6 {[%clk 0:02:58]} 7. Nbd2 {[%clk 0:02:53]}  O-O {[%clk 0:02:58]} 8. O-O {[%clk 0:02:52]}  Ne8 {[%clk 0:02:58]} 9. Bd3 {[%clk 0:02:45]}  Bg5 {[%clk 0:02:57]} 10. Nxg5 {[%clk 0:02:34]}  Qxg5 {[%clk 0:02:58]} 11. Nc4 {[%clk 0:02:34]}  Qe7 {[%clk 0:02:57]} 12. f4 {[%clk 0:02:34]}  exf4 {[%clk 0:02:54]} 13. Bxf4 {[%clk 0:02:33]}  Ne5 {[%clk 0:02:55]} 14. Nxe5 {[%clk 0:02:29]}  dxe5 {[%clk 0:02:55]} 15. Be3 {[%clk 0:02:29]}  b6 {[%clk 0:02:54]} 16. a5 {[%clk 0:02:28]}  Bb7 {[%clk 0:02:51]} 17. c3 {[%clk 0:02:14]}  Nd6 {[%clk 0:02:50]} 18. Qg4 {[%clk 0:02:12]}  f6 {[%clk 0:02:40]} 19. h4 {[%clk 0:01:53]}  Bc8 {[%clk 0:02:39]} 20. Qg3 {[%clk 0:01:50]}  Bd7 {[%clk 0:02:39]} 21. h5 {[%clk 0:01:48]}  Kh8 {[%clk 0:02:37]} 22. h6 {[%clk 0:01:45]}  g6 {[%clk 0:02:37]} 23. Rf2 {[%clk 0:01:41]}  Bb5 {[%clk 0:02:30]} 24. Bc2 {[%clk 0:01:41]}  Rf7 {[%clk 0:02:19]} 25. axb6 {[%clk 0:01:38]} 1-0


[Site "https://www.chess.com"]

[Event "Titled Tuesday Blitz April 25 Late 2023"]
[White "Ismagilov, Damir"]
[Black "Kollars, Dmitrij"]
[WhiteFideId "34199982"]
[BlackFideId "12909572"]
[WhiteElo "2078"]
[BlackElo "2584"]
[Result "0-1"]
[Round "02"]
[TimeControl "180+2"]
[Date "2023.04.25"]
[WhiteClock "0:00:03"]
[BlackClock "0:00:13"]

1. d4 {[%clk 0:03:00]}  Nf6 {[%clk 0:03:00]} 2. Nf3 {[%clk 0:03:00]}  e6 {[%clk 0:03:00]} 3. Bg5 {[%clk 0:03:00]}  d5 {[%clk 0:02:53]} 4. Nbd2 {[%clk 0:03:00]}  Nbd7 {[%clk 0:02:53]} 5. e3 {[%clk 0:03:00]}  b6 {[%clk 0:02:51]} 6. Bd3 {[%clk 0:03:00]}  Bb7 {[%clk 0:02:51]} 7. c3 {[%clk 0:03:00]}  Bd6 {[%clk 0:02:46]} 8. e4 {[%clk 0:02:56]}  dxe4 {[%clk 0:02:41]} 9. Bxe4 {[%clk 0:02:55]}  Qc8 {[%clk 0:02:36]} 10. Bxb7 {[%clk 0:02:49]}  Qxb7 {[%clk 0:02:37]} 11. Qe2 {[%clk 0:02:48]}  O-O {[%clk 0:02:33]} 12. O-O {[%clk 0:02:46]}  c5 {[%clk 0:02:31]} 13. dxc5 {[%clk 0:02:45]}  Bxc5 {[%clk 0:02:26]} 14. Rad1 {[%clk 0:02:44]}  h6 {[%clk 0:02:25]} 15. Bxf6 {[%clk 0:02:44]}  Nxf6 {[%clk 0:02:25]} 16. Nb3 {[%clk 0:02:37]}  Be7 {[%clk 0:02:24]} 17. Ne5 {[%clk 0:02:20]}  b5 {[%clk 0:02:16]} 18. Na5 {[%clk 0:02:07]}  Qc7 {[%clk 0:02:06]} 19. Nac6 {[%clk 0:01:45]}  a6 {[%clk 0:02:06]} 20. Nxe7+ {[%clk 0:01:37]}  Qxe7 {[%clk 0:02:07]} 21. Rd2 {[%clk 0:01:36]}  Qc7 {[%clk 0:01:59]} 22. Rfd1 {[%clk 0:01:33]}  Rad8 {[%clk 0:01:53]} 23. Rxd8 {[%clk 0:01:31]}  Rxd8 {[%clk 0:01:53]} 24. Rxd8+ {[%clk 0:01:31]}  Qxd8 {[%clk 0:01:54]} 25. Qd3 {[%clk 0:01:30]}  Qc7 {[%clk 0:01:54]} 26. Qd4 {[%clk 0:01:23]}  Nd5 {[%clk 0:01:51]} 27. h3 {[%clk 0:01:19]}  a5 {[%clk 0:01:39]} 28. c4 {[%clk 0:01:14]}  bxc4 {[%clk 0:01:36]} 29. Nxc4 {[%clk 0:01:14]}  a4 {[%clk 0:01:25]} 30. Ne3 {[%clk 0:01:04]}  Nf4 {[%clk 0:00:56]} 31. Qxa4 {[%clk 0:00:47]}  Qc1+ {[%clk 0:00:55]} 32. Kh2 {[%clk 0:00:47]}  Ne2 {[%clk 0:00:51]} 33. Qd1 {[%clk 0:00:35]}  Qxb2 {[%clk 0:00:43]} 34. a4 {[%clk 0:00:26]}  Nd4 {[%clk 0:00:40]} 35. a5 {[%clk 0:00:23]}  e5 {[%clk 0:00:37]} 36. Kg1 {[%clk 0:00:15]}  Qa2 {[%clk 0:00:33]} 37. Qe1 {[%clk 0:00:11]}  Qa4 {[%clk 0:00:18]} 38. Kh2 {[%clk 0:00:07]}  Qa2 {[%clk 0:00:17]} 39. Kg1 {[%clk 0:00:07]}  h5 {[%clk 0:00:17]} 40. h4 {[%clk 0:00:06]}  g6 {[%clk 0:00:17]} 41. Qf1 {[%clk 0:00:02]}  Qxa5 {[%clk 0:00:16]} 42. Nc4 {[%clk 0:00:03]}  Qd5 {[%clk 0:00:14]} 43. Ne3 {[%clk 0:00:03]}  Qe4 {[%clk 0:00:15]} 44. Qd1 {[%clk 0:00:03]}  Qxh4 {[%clk 0:00:14]} 45. Qa4 {[%clk 0:00:03]}  Nf3+ {[%clk 0:00:13]} 0-1


[Site "https://www.chess.com"]

[Event "Titled Tuesday Blitz April 25 Late 2023"]
[White "Martinez Alcantara, Jose Eduardo"]
[Black "Schnaider, Ilan"]
[WhiteFideId "3805662"]
[BlackFideId "169013"]
[WhiteElo "2711"]
[BlackElo "2224"]
[Result "1-0"]
[Round "02"]
[TimeControl "180+2"]
[Date "2023.04.25"]
[WhiteClock "0:00:31"]
[BlackClock "0:00:01"]

1. e4 {[%clk 0:03:00]}  c5 {[%clk 0:02:56]} 2. Nf3 {[%clk 0:03:00]}  d6 {[%clk 0:02:55]} 3. c3 {[%clk 0:03:01]}  Nf6 {[%clk 0:02:50]} 4. h3 {[%clk 0:03:01]}  g6 {[%clk 0:02:34]} 5. Bd3 {[%clk 0:03:00]}  Bg7 {[%clk 0:02:34]} 6. Bc2 {[%clk 0:02:59]}  O-O {[%clk 0:02:34]} 7. O-O {[%clk 0:02:59]}  Nc6 {[%clk 0:02:25]} 8. d4 {[%clk 0:02:59]}  cxd4 {[%clk 0:02:21]} 9. cxd4 {[%clk 0:02:59]}  e5 {[%clk 0:02:21]} 10. d5 {[%clk 0:02:59]}  Ne7 {[%clk 0:02:18]} 11. Nc3 {[%clk 0:02:54]}  a6 {[%clk 0:02:10]} 12. Bg5 {[%clk 0:02:42]}  Nd7 {[%clk 0:02:01]} 13. Qd2 {[%clk 0:02:33]}  f5 {[%clk 0:01:51]} 14. exf5 {[%clk 0:02:17]}  gxf5 {[%clk 0:01:51]} 15. Rfe1 {[%clk 0:02:16]}  Qe8 {[%clk 0:01:41]} 16. Ne2 {[%clk 0:02:02]}  Ng6 {[%clk 0:01:14]} 17. Ng3 {[%clk 0:02:01]}  e4 {[%clk 0:01:07]} 18. Nd4 {[%clk 0:02:01]}  Nde5 {[%clk 0:00:56]} 19. Ne6 {[%clk 0:01:51]}  Rf7 {[%clk 0:00:25]} 20. Nxg7 {[%clk 0:01:39]}  Kxg7 {[%clk 0:00:23]} 21. Nh5+ {[%clk 0:01:39]}  Kh8 {[%clk 0:00:17]} 22. Qb4 {[%clk 0:01:26]}  Qf8 {[%clk 0:00:14]} 23. Nf4 {[%clk 0:01:18]}  h6 {[%clk 0:00:09]} 24. Nxg6+ {[%clk 0:01:16]}  Nxg6 {[%clk 0:00:10]} 25. Bd2 {[%clk 0:01:16]}  Kh7 {[%clk 0:00:08]} 26. Re3 {[%clk 0:01:04]}  Bd7 {[%clk 0:00:06]} 27. f3 {[%clk 0:01:01]}  Re8 {[%clk 0:00:02]} 28. Rae1 {[%clk 0:01:00]}  exf3 {[%clk 0:00:01]} 29. Rxf3 {[%clk 0:01:01]}  Rxe1+ {[%clk 0:00:01]} 30. Bxe1 {[%clk 0:01:02]}  Ne5 {[%clk 0:00:02]} 31. Rf4 {[%clk 0:00:59]}  Ng6 {[%clk 0:00:01]} 32. Rf2 {[%clk 0:00:57]}  Ne5 {[%clk 0:00:01]} 33. Bc3 {[%clk 0:00:57]}  Kg8 {[%clk 0:00:01]} 34. a4 {[%clk 0:00:49]}  Qg7 {[%clk 0:00:02]} 35. Qxd6 {[%clk 0:00:45]}  Re7 {[%clk 0:00:02]} 36. Re2 {[%clk 0:00:31]}  Nf3+ {[%clk 0:00:01]} 37. Kf1 {[%clk 0:00:32]}  Nh2+ {[%clk 0:00:01]} 38. Qxh2 {[%clk 0:00:31]} 1-0


[Site "https://www.chess.com"]

[Event "Titled Tuesday Blitz April 25 Late 2023"]
[White "Makarian, Rudik"]
[Black "Martinez Reyes, Pedro Ramon"]
[WhiteFideId "44105681"]
[BlackFideId "3901807"]
[WhiteElo "2430"]
[BlackElo "2340"]
[Result "1-0"]
[Round "02"]
[TimeControl "180+2"]
[Date "2023.04.25"]
[WhiteClock "0:00:22"]
[BlackClock "0:00:46"]

1. d4 {[%clk 0:03:00]}  Nf6 {[%clk 0:02:58]} 2. c4 {[%clk 0:03:01]}  c5 {[%clk 0:02:58]} 3. Nf3 {[%clk 0:03:02]}  cxd4 {[%clk 0:02:58]} 4. Nxd4 {[%clk 0:03:03]}  e5 {[%clk 0:02:55]} 5. Nb5 {[%clk 0:03:02]}  d5 {[%clk 0:02:55]} 6. cxd5 {[%clk 0:03:01]}  Bc5 {[%clk 0:02:55]} 7. e3 {[%clk 0:02:53]}  O-O {[%clk 0:02:50]} 8. N5c3 {[%clk 0:02:49]}  e4 {[%clk 0:02:49]} 9. Be2 {[%clk 0:02:49]}  Re8 {[%clk 0:02:43]} 10. a3 {[%clk 0:02:48]}  Nbd7 {[%clk 0:02:38]} 11. Nd2 {[%clk 0:02:45]}  a6 {[%clk 0:02:21]} 12. O-O {[%clk 0:02:43]}  b5 {[%clk 0:02:21]} 13. b4 {[%clk 0:02:41]}  Bd6 {[%clk 0:02:20]} 14. Bb2 {[%clk 0:02:40]}  Nf8 {[%clk 0:02:14]} 15. Nb3 {[%clk 0:02:35]}  Qc7 {[%clk 0:02:01]} 16. g3 {[%clk 0:02:33]}  Bh3 {[%clk 0:01:58]} 17. Re1 {[%clk 0:02:33]}  Ng6 {[%clk 0:01:49]} 18. Rc1 {[%clk 0:02:31]}  Qd7 {[%clk 0:01:47]} 19. Nc5 {[%clk 0:02:18]}  Qf5 {[%clk 0:01:42]} 20. f4 {[%clk 0:01:41]}  exf3 {[%clk 0:01:30]} 21. Bxf3 {[%clk 0:01:41]}  Qg5 {[%clk 0:01:31]} 22. N3e4 {[%clk 0:01:00]}  Nxe4 {[%clk 0:01:28]} 23. Nxe4 {[%clk 0:01:01]}  Rxe4 {[%clk 0:01:28]} 24. Bxe4 {[%clk 0:01:02]}  Bxg3 {[%clk 0:01:29]} 25. hxg3 {[%clk 0:00:27]}  Qxg3+ {[%clk 0:01:29]} 26. Kh1 {[%clk 0:00:27]}  Qh4 {[%clk 0:01:07]} 27. Qd4 {[%clk 0:00:25]}  Bf5+ {[%clk 0:00:54]} 28. Kg1 {[%clk 0:00:23]}  Qg3+ {[%clk 0:00:48]} 29. Bg2 {[%clk 0:00:22]}  Nh4 {[%clk 0:00:46]} 30. Qxg7+ {[%clk 0:00:21]}  Qxg7 {[%clk 0:00:46]} 31. Bxg7 {[%clk 0:00:22]}  Kxg7 {[%clk 0:00:46]} 1-0


[Site "https://www.chess.com"]

[Event "Titled Tuesday Blitz April 25 Late 2023"]
[White "Martinez Ramirez, Lennis"]
[Black "Hakobyan, Aram"]
[WhiteFideId "3509079"]
[BlackFideId "13306677"]
[WhiteElo "2410"]
[BlackElo "2584"]
[Result "0-1"]
[Round "02"]
[TimeControl "180+2"]
[Date "2023.04.25"]
[WhiteClock "0:00:10"]
[BlackClock "0:00:47"]

1. c4 {[%clk 0:03:00]}  g6 {[%clk 0:02:59]} 2. Nc3 {[%clk 0:02:59]}  Bg7 {[%clk 0:03:00]} 3. g3 {[%clk 0:02:59]}  Nf6 {[%clk 0:02:58]} 4. Bg2 {[%clk 0:02:59]}  O-O {[%clk 0:02:59]} 5. d4 {[%clk 0:02:56]}  d6 {[%clk 0:02:59]} 6. Nf3 {[%clk 0:02:56]}  Bf5 {[%clk 0:02:59]} 7. O-O {[%clk 0:02:55]}  Ne4 {[%clk 0:03:00]} 8. Qb3 {[%clk 0:02:53]}  Nxc3 {[%clk 0:02:59]} 9. bxc3 {[%clk 0:02:48]}  Be4 {[%clk 0:02:59]} 10. a4 {[%clk 0:02:26]}  a5 {[%clk 0:02:49]} 11. Re1 {[%clk 0:02:15]}  Nd7 {[%clk 0:02:49]} 12. Bh3 {[%clk 0:02:12]}  e6 {[%clk 0:02:48]} 13. Nd2 {[%clk 0:01:54]}  Bc6 {[%clk 0:02:47]} 14. e4 {[%clk 0:01:52]}  e5 {[%clk 0:02:44]} 15. Bb2 {[%clk 0:01:39]}  b6 {[%clk 0:02:41]} 16. Qc2 {[%clk 0:01:37]}  Re8 {[%clk 0:02:39]} 17. Qd3 {[%clk 0:01:36]}  Qe7 {[%clk 0:02:24]} 18. f3 {[%clk 0:01:26]}  h5 {[%clk 0:02:21]} 19. Nf1 {[%clk 0:01:19]}  h4 {[%clk 0:02:07]} 20. Ne3 {[%clk 0:01:18]}  hxg3 {[%clk 0:02:06]} 21. hxg3 {[%clk 0:01:18]}  Rad8 {[%clk 0:01:56]} 22. Nd5 {[%clk 0:01:17]}  Bxd5 {[%clk 0:01:56]} 23. cxd5 {[%clk 0:01:17]}  Bf6 {[%clk 0:01:50]} 24. Kg2 {[%clk 0:01:17]}  Kg7 {[%clk 0:01:50]} 25. Rh1 {[%clk 0:01:16]}  Rh8 {[%clk 0:01:51]} 26. Bg4 {[%clk 0:01:16]}  Bg5 {[%clk 0:01:47]} 27. Qb5 {[%clk 0:01:13]}  Nf6 {[%clk 0:01:46]} 28. dxe5 {[%clk 0:00:59]}  dxe5 {[%clk 0:01:42]} 29. Ba3 {[%clk 0:00:49]}  Qe8 {[%clk 0:01:38]} 30. Qxe8 {[%clk 0:00:42]}  Rhxe8 {[%clk 0:01:36]} 31. Bh3 {[%clk 0:00:41]}  Nh7 {[%clk 0:01:18]} 32. c4 {[%clk 0:00:33]}  Be7 {[%clk 0:01:18]} 33. Bxe7 {[%clk 0:00:23]}  Rxe7 {[%clk 0:01:19]} 34. c5 {[%clk 0:00:23]}  bxc5 {[%clk 0:01:19]} 35. Rhc1 {[%clk 0:00:23]}  Rb8 {[%clk 0:01:18]} 36. Rab1 {[%clk 0:00:23]}  Rb4 {[%clk 0:01:18]} 37. Rxb4 {[%clk 0:00:22]}  cxb4 {[%clk 0:01:18]} 38. Rc5 {[%clk 0:00:22]}  Re8 {[%clk 0:01:07]} 39. Rxc7 {[%clk 0:00:16]}  Rb8 {[%clk 0:01:08]} 40. Bd7 {[%clk 0:00:15]}  b3 {[%clk 0:01:06]} 41. Rc1 {[%clk 0:00:15]}  b2 {[%clk 0:01:01]} 42. Rb1 {[%clk 0:00:15]}  Rb4 {[%clk 0:01:02]} 43. Bb5 {[%clk 0:00:15]}  Kf8 {[%clk 0:00:54]} 44. d6 {[%clk 0:00:14]}  Ng5 {[%clk 0:00:54]} 45. Kf2 {[%clk 0:00:14]}  Rb3 {[%clk 0:00:47]} 46. Ke2 {[%clk 0:00:14]}  Nxf3 {[%clk 0:00:47]} 47. d7 {[%clk 0:00:14]}  Nd4+ {[%clk 0:00:46]} 48. Kd2 {[%clk 0:00:14]}  Ke7 {[%clk 0:00:47]} 49. g4 {[%clk 0:00:13]}  Nxb5 {[%clk 0:00:45]} 50. axb5 {[%clk 0:00:13]}  Rxb5 {[%clk 0:00:45]} 51. Kc2 {[%clk 0:00:14]}  Kd8 {[%clk 0:00:45]} 52. g5 {[%clk 0:00:09]}  a4 {[%clk 0:00:44]} 53. Rxb2 {[%clk 0:00:08]}  Rxb2+ {[%clk 0:00:45]} 54. Kxb2 {[%clk 0:00:09]}  Kxd7 {[%clk 0:00:45]} 55. Ka3 {[%clk 0:00:10]}  f6 {[%clk 0:00:44]} 56. gxf6 {[%clk 0:00:08]}  g5 {[%clk 0:00:45]} 57. Kxa4 {[%clk 0:00:07]}  g4 {[%clk 0:00:46]} 58. f7 {[%clk 0:00:07]}  Ke7 {[%clk 0:00:46]} 59. Kb4 {[%clk 0:00:08]}  g3 {[%clk 0:00:46]} 60. Kc5 {[%clk 0:00:08]}  g2 {[%clk 0:00:46]} 61. Kd5 {[%clk 0:00:09]}  g1=Q {[%clk 0:00:47]} 62. Kxe5 {[%clk 0:00:10]}  Qg7+ {[%clk 0:00:47]} 0-1


[Site "https://www.chess.com"]

[Event "Titled Tuesday Blitz April 25 Late 2023"]
[White "Terry, Renato"]
[Black "Danielyan, Vahe"]
[WhiteFideId "3803457"]
[BlackFideId "13304828"]
[WhiteElo "2575"]
[BlackElo "2423"]
[Result "1-0"]
[Round "02"]
[TimeControl "180+2"]
[Date "2023.04.25"]
[WhiteClock "0:01:03"]
[BlackClock "0:00:05"]

1. Nf3 {[%clk 0:03:00]}  d6 {[%clk 0:02:59]} 2. c4 {[%clk 0:02:59]}  Bg4 {[%clk 0:02:58]} 3. Qb3 {[%clk 0:02:59]}  Qc8 {[%clk 0:02:55]} 4. d4 {[%clk 0:02:58]}  Nf6 {[%clk 0:02:55]} 5. g3 {[%clk 0:02:58]}  Bxf3 {[%clk 0:02:54]} 6. Qxf3 {[%clk 0:02:57]}  Nbd7 {[%clk 0:02:54]} 7. Bg2 {[%clk 0:02:57]}  c6 {[%clk 0:02:55]} 8. Nc3 {[%clk 0:02:57]}  g6 {[%clk 0:02:55]} 9. O-O {[%clk 0:02:57]}  Bg7 {[%clk 0:02:56]} 10. Rd1 {[%clk 0:02:55]}  O-O {[%clk 0:02:57]} 11. b3 {[%clk 0:02:49]}  a6 {[%clk 0:02:47]} 12. Bb2 {[%clk 0:02:29]}  Rb8 {[%clk 0:02:47]} 13. Rac1 {[%clk 0:02:29]}  Re8 {[%clk 0:02:29]} 14. g4 {[%clk 0:02:25]}  e5 {[%clk 0:02:15]} 15. g5 {[%clk 0:02:21]}  Nh5 {[%clk 0:02:03]} 16. e3 {[%clk 0:02:10]}  Qd8 {[%clk 0:01:42]} 17. h4 {[%clk 0:02:10]}  Qe7 {[%clk 0:01:29]} 18. Ba3 {[%clk 0:02:01]}  f5 {[%clk 0:01:23]} 19. gxf6 {[%clk 0:01:50]}  Bxf6 {[%clk 0:01:22]} 20. dxe5 {[%clk 0:01:51]}  Nxe5 {[%clk 0:01:20]} 21. Qh3 {[%clk 0:01:51]}  Rbd8 {[%clk 0:01:21]} 22. Ne4 {[%clk 0:01:51]}  c5 {[%clk 0:00:58]} 23. Nxf6+ {[%clk 0:01:35]}  Nxf6 {[%clk 0:00:57]} 24. Bb2 {[%clk 0:01:31]}  Nfg4 {[%clk 0:00:53]} 25. f4 {[%clk 0:01:24]}  Qf6 {[%clk 0:00:21]} 26. Rd2 {[%clk 0:01:09]}  Kg7 {[%clk 0:00:09]} 27. fxe5 {[%clk 0:01:04]}  Nxe5 {[%clk 0:00:10]} 28. Rf1 {[%clk 0:01:03]}  Qe7 {[%clk 0:00:08]} 29. Rdf2 {[%clk 0:01:03]}  Kg8 {[%clk 0:00:06]} 30. Bd5+ {[%clk 0:01:03]}  Kh8 {[%clk 0:00:07]} 31. Rf7 {[%clk 0:01:03]}  Qe6 {[%clk 0:00:05]} 32. Bxe6 {[%clk 0:01:03]} 1-0


[Site "https://www.chess.com"]

[Event "Titled Tuesday Blitz April 25 Late 2023"]
[White "Makaraci, Tunahan"]
[Black "Melkumyan, Hrant"]
[WhiteFideId "6356559"]
[BlackFideId "13302485"]
[WhiteElo "2160"]
[BlackElo "2604"]
[Result "1-0"]
[Round "02"]
[TimeControl "180+2"]
[Date "2023.04.25"]
[WhiteClock "0:00:12"]
[BlackClock "0:00:02"]

1. e4 {[%clk 0:03:00]}  c6 {[%clk 0:02:59]} 2. d4 {[%clk 0:03:01]}  d5 {[%clk 0:03:00]} 3. exd5 {[%clk 0:03:01]}  cxd5 {[%clk 0:03:00]} 4. c4 {[%clk 0:03:02]}  Nf6 {[%clk 0:02:59]} 5. Nc3 {[%clk 0:03:02]}  e6 {[%clk 0:02:59]} 6. Nf3 {[%clk 0:03:02]}  Be7 {[%clk 0:02:55]} 7. cxd5 {[%clk 0:03:01]}  Nxd5 {[%clk 0:02:55]} 8. Bd3 {[%clk 0:02:53]}  Nc6 {[%clk 0:02:54]} 9. O-O {[%clk 0:02:53]}  O-O {[%clk 0:02:50]} 10. Re1 {[%clk 0:02:53]}  Bf6 {[%clk 0:02:46]} 11. Be4 {[%clk 0:02:51]}  Nce7 {[%clk 0:02:46]} 12. Qd3 {[%clk 0:02:50]}  g6 {[%clk 0:02:45]} 13. Bh6 {[%clk 0:02:49]}  Bg7 {[%clk 0:02:38]} 14. Bxg7 {[%clk 0:02:39]}  Kxg7 {[%clk 0:02:38]} 15. Bxd5 {[%clk 0:02:34]}  Nxd5 {[%clk 0:02:39]} 16. Ne5 {[%clk 0:02:22]}  f6 {[%clk 0:02:25]} 17. Ng4 {[%clk 0:02:18]}  Nxc3 {[%clk 0:02:11]} 18. bxc3 {[%clk 0:02:09]}  Bd7 {[%clk 0:02:11]} 19. Qe3 {[%clk 0:01:57]}  Rc8 {[%clk 0:02:09]} 20. Rac1 {[%clk 0:01:50]}  e5 {[%clk 0:02:01]} 21. Qh6+ {[%clk 0:01:33]}  Kg8 {[%clk 0:02:01]} 22. Ne3 {[%clk 0:01:31]}  exd4 {[%clk 0:01:53]} 23. cxd4 {[%clk 0:01:31]}  Rxc1 {[%clk 0:01:54]} 24. Rxc1 {[%clk 0:01:32]}  Be6 {[%clk 0:01:55]} 25. d5 {[%clk 0:01:31]}  Bf7 {[%clk 0:01:55]} 26. Qf4 {[%clk 0:01:27]}  Re8 {[%clk 0:01:47]} 27. h4 {[%clk 0:01:19]}  h5 {[%clk 0:01:32]} 28. Rc7 {[%clk 0:01:00]}  Re7 {[%clk 0:01:30]} 29. d6 {[%clk 0:00:58]}  Rxc7 {[%clk 0:01:30]} 30. dxc7 {[%clk 0:00:58]}  Qd7 {[%clk 0:01:31]} 31. Nc4 {[%clk 0:00:48]}  Kh7 {[%clk 0:00:47]} 32. Qd6 {[%clk 0:00:42]}  Qe8 {[%clk 0:00:34]} 33. Ne3 {[%clk 0:00:36]}  Be6 {[%clk 0:00:32]} 34. Qd8 {[%clk 0:00:36]}  Qc6 {[%clk 0:00:17]} 35. Qe7+ {[%clk 0:00:36]}  Kg8 {[%clk 0:00:17]} 36. Qxf6 {[%clk 0:00:34]}  Kh7 {[%clk 0:00:11]} 37. Qe7+ {[%clk 0:00:22]}  Kh6 {[%clk 0:00:12]} 38. g3 {[%clk 0:00:17]}  b5 {[%clk 0:00:11]} 39. Qd8 {[%clk 0:00:15]}  Kg7 {[%clk 0:00:10]} 40. Ng2 {[%clk 0:00:15]}  Bf5 {[%clk 0:00:04]} 41. Nf4 {[%clk 0:00:14]}  a5 {[%clk 0:00:04]} 42. Qe7+ {[%clk 0:00:14]}  Kg8 {[%clk 0:00:05]} 43. Qd8+ {[%clk 0:00:14]}  Kf7 {[%clk 0:00:05]} 44. Nd5 {[%clk 0:00:14]}  Qc1+ {[%clk 0:00:01]} 45. Kh2 {[%clk 0:00:14]}  Qc5 {[%clk 0:00:02]} 46. Qf6+ {[%clk 0:00:13]}  Ke8 {[%clk 0:00:02]} 47. Qe5+ {[%clk 0:00:12]}  Kd7 {[%clk 0:00:02]} 48. Nf6+ {[%clk 0:00:12]}  Kc8 {[%clk 0:00:02]} 49. Qxc5 {[%clk 0:00:12]} 1-0


[Site "https://www.chess.com"]

[Event "Titled Tuesday Blitz April 25 Late 2023"]
[White "Przybylski, Wojciech"]
[Black "Hansen, Eric"]
[WhiteFideId "1117599"]
[BlackFideId "2606771"]
[WhiteElo "2222"]
[BlackElo "2561"]
[Result "0-1"]
[Round "02"]
[TimeControl "180+2"]
[Date "2023.04.25"]
[WhiteClock "0:00:37"]
[BlackClock "0:00:34"]

1. e4 {[%clk 0:03:00]}  c5 {[%clk 0:02:53]} 2. Nf3 {[%clk 0:03:00]}  e6 {[%clk 0:02:53]} 3. d4 {[%clk 0:02:58]}  cxd4 {[%clk 0:02:52]} 4. Nxd4 {[%clk 0:02:59]}  Nc6 {[%clk 0:02:50]} 5. Nc3 {[%clk 0:02:59]}  a6 {[%clk 0:02:51]} 6. Be3 {[%clk 0:02:55]}  Nf6 {[%clk 0:02:33]} 7. a3 {[%clk 0:02:54]}  Qc7 {[%clk 0:02:29]} 8. g4 {[%clk 0:02:50]}  h6 {[%clk 0:02:27]} 9. Bg2 {[%clk 0:02:49]}  Be7 {[%clk 0:02:22]} 10. h4 {[%clk 0:02:48]}  h5 {[%clk 0:02:20]} 11. gxh5 {[%clk 0:02:39]}  Ne5 {[%clk 0:02:16]} 12. h6 {[%clk 0:02:33]}  gxh6 {[%clk 0:02:14]} 13. Qe2 {[%clk 0:02:27]}  Nc4 {[%clk 0:02:13]} 14. Bc1 {[%clk 0:02:27]}  Rg8 {[%clk 0:02:11]} 15. Kf1 {[%clk 0:02:19]}  Ng4 {[%clk 0:02:03]} 16. Rh3 {[%clk 0:02:11]}  b5 {[%clk 0:01:55]} 17. b3 {[%clk 0:01:48]}  Nce5 {[%clk 0:01:46]} 18. f4 {[%clk 0:01:46]}  Qc5 {[%clk 0:01:27]} 19. Qd2 {[%clk 0:01:20]}  Nc6 {[%clk 0:01:18]} 20. Nce2 {[%clk 0:01:14]}  Nxd4 {[%clk 0:01:16]} 21. Qxd4 {[%clk 0:01:07]}  Bb7 {[%clk 0:01:16]} 22. c3 {[%clk 0:00:56]}  Qh5 {[%clk 0:01:13]} 23. Qb6 {[%clk 0:00:51]}  Bc6 {[%clk 0:01:02]} 24. Ng3 {[%clk 0:00:50]}  Nh2+ {[%clk 0:00:57]} 25. Kg1 {[%clk 0:00:42]}  Rxg3 {[%clk 0:00:49]} 26. Kxh2 {[%clk 0:00:39]}  Rxg2+ {[%clk 0:00:49]} 27. Kxg2 {[%clk 0:00:37]}  Bc5 {[%clk 0:00:34]} 0-1


[Site "https://www.chess.com"]

[Event "Titled Tuesday Blitz April 25 Late 2023"]
[White "Zhigalko, Sergei"]
[Black "Richter, Paul"]
[WhiteFideId "13502956"]
[BlackFideId "2046350"]
[WhiteElo "2626"]
[BlackElo "2171"]
[Result "1-0"]
[Round "02"]
[TimeControl "180+2"]
[Date "2023.04.25"]
[WhiteClock "0:00:02"]
[BlackClock "0:00:09"]

1. e4 {[%clk 0:03:00]}  c5 {[%clk 0:02:59]} 2. Nf3 {[%clk 0:03:00]}  d6 {[%clk 0:03:00]} 3. d4 {[%clk 0:03:00]}  cxd4 {[%clk 0:03:00]} 4. Qxd4 {[%clk 0:03:00]}  Nc6 {[%clk 0:03:00]} 5. Bb5 {[%clk 0:02:59]}  Bd7 {[%clk 0:03:01]} 6. Bxc6 {[%clk 0:03:00]}  bxc6 {[%clk 0:03:02]} 7. c4 {[%clk 0:03:00]}  e5 {[%clk 0:03:02]} 8. Qd3 {[%clk 0:03:00]}  Be7 {[%clk 0:03:03]} 9. O-O {[%clk 0:03:00]}  Qc7 {[%clk 0:03:02]} 10. Rd1 {[%clk 0:02:58]}  Be6 {[%clk 0:03:01]} 11. Nc3 {[%clk 0:02:49]}  Nf6 {[%clk 0:02:59]} 12. Bg5 {[%clk 0:02:43]}  Rd8 {[%clk 0:02:58]} 13. b3 {[%clk 0:02:43]}  O-O {[%clk 0:02:56]} 14. Rac1 {[%clk 0:02:43]}  Nh5 {[%clk 0:02:26]} 15. Nd5 {[%clk 0:02:26]}  Bxd5 {[%clk 0:02:25]} 16. cxd5 {[%clk 0:02:25]}  Bxg5 {[%clk 0:02:24]} 17. Nxg5 {[%clk 0:02:19]}  Qe7 {[%clk 0:02:19]} 18. Nf3 {[%clk 0:01:53]}  c5 {[%clk 0:02:14]} 19. g3 {[%clk 0:01:50]}  f5 {[%clk 0:02:07]} 20. Nd2 {[%clk 0:01:33]}  Qg5 {[%clk 0:01:43]} 21. exf5 {[%clk 0:01:19]}  Rxf5 {[%clk 0:01:38]} 22. Ne4 {[%clk 0:01:18]}  Qg4 {[%clk 0:01:35]} 23. Kh1 {[%clk 0:01:02]}  Nf6 {[%clk 0:01:26]} 24. Rc4 {[%clk 0:00:40]}  Nxe4 {[%clk 0:01:15]} 25. Rxe4 {[%clk 0:00:41]}  Qg6 {[%clk 0:01:01]} 26. f3 {[%clk 0:00:33]}  Rdf8 {[%clk 0:01:00]} 27. Rf1 {[%clk 0:00:34]}  h5 {[%clk 0:00:56]} 28. Kg2 {[%clk 0:00:31]}  Qf7 {[%clk 0:00:54]} 29. b4 {[%clk 0:00:22]}  cxb4 {[%clk 0:00:49]} 30. Rxb4 {[%clk 0:00:23]}  Kh8 {[%clk 0:00:36]} 31. Rf2 {[%clk 0:00:22]}  Re8 {[%clk 0:00:33]} 32. Ra4 {[%clk 0:00:21]}  Re7 {[%clk 0:00:33]} 33. Rc2 {[%clk 0:00:19]}  g6 {[%clk 0:00:26]} 34. Ra6 {[%clk 0:00:16]}  Rf6 {[%clk 0:00:21]} 35. Rac6 {[%clk 0:00:12]}  Kh7 {[%clk 0:00:19]} 36. a4 {[%clk 0:00:12]}  Kg7 {[%clk 0:00:19]} 37. a5 {[%clk 0:00:12]}  h4 {[%clk 0:00:18]} 38. R6c3 {[%clk 0:00:09]}  hxg3 {[%clk 0:00:18]} 39. hxg3 {[%clk 0:00:09]}  Rf5 {[%clk 0:00:19]} 40. a6 {[%clk 0:00:08]}  Rf6 {[%clk 0:00:18]} 41. Rb3 {[%clk 0:00:08]}  Rf5 {[%clk 0:00:18]} 42. Rcb2 {[%clk 0:00:09]}  Qf8 {[%clk 0:00:16]} 43. Rb7 {[%clk 0:00:08]}  Rff7 {[%clk 0:00:17]} 44. Qe3 {[%clk 0:00:07]}  e4 {[%clk 0:00:14]} 45. fxe4 {[%clk 0:00:07]}  Qe8 {[%clk 0:00:13]} 46. Qxa7 {[%clk 0:00:05]}  Rxe4 {[%clk 0:00:12]} 47. Rxf7+ {[%clk 0:00:04]}  Kh6 {[%clk 0:00:13]} 48. Rh7+ {[%clk 0:00:03]}  Kg5 {[%clk 0:00:13]} 49. Qf2 {[%clk 0:00:03]}  Qe5 {[%clk 0:00:12]} 50. Rh4 {[%clk 0:00:03]}  Re1 {[%clk 0:00:09]} 51. Qf4+ {[%clk 0:00:02]} 1-0


[Site "https://www.chess.com"]